Cogmind - Beta 11 @@@ ROGUE MODE // 2022.04.17 @ 16:47:49 Player: Shadow Pussy wanter Result: Self-destructed Performance ------------- Evolutions (6) 3000 Regions Visited (11) 2200 Robots Destroyed (151) 755 Value Destroyed (6217) 6217 Prototype IDs (13) 260 Alien Tech Used (0) 0 Bonus (2869) 2869 TOTAL SCORE: 15301 Bonus ------- High Alert Combat Kills 770 Follower Combat Kills 1891 Built Enhanced Grunts 300 Met R17 at Cetus 500 Friendly Fire -592 Cogmind --------- Core Integrity 366/1150 Matter 252/300 Energy 35/100 System Corruption 0% Temperature Cool (0) Movement Core (50) Location -4/Factory Parts ------- > --- POWER (1) -------- (None) > --- PROPULSION (6) --- (None) > --- UTILITY (8) ------ (None) > --- WEAPON (4) ------- (None) > --- INVENTORY (5) ---- Neutrino Core Improved Weapon Cycler Improved Medium Armor Plating Improved Medium Armor Plating Improved KE Penetrator Peak State ------------ > --- POWER ------------ Mini Fusion Reactor > --- PROPULSION ------- Centrium Heavy Treads Centrium Heavy Treads > --- UTILITY ---------- Advanced Heat Sink Advanced Heat Sink Large Storage Unit Phase Shifter Centrium Medium Armor Plating Centrium Medium Armor Plating > --- WEAPON ----------- Heavy Laser Advanced Variable Charge Gun Advanced Variable Charge Gun Advanced KE Penetrator > --- INVENTORY -------- Light Angular Momentum Engine Fission Core Carbon-fiber Leg Carbon-fiber Leg Improved Titanium Leg Flexi-carbon Leg Armored Leg Armored Leg Myomer Leg Matter Compressor Improved Signal Interpreter Improved Medium Armor Plating Layered Medium Armor Plating Neutron Cannon Gauss Rifle [Rating: 113] Favorites ----------- Power Reinforced Deuterium Engine Engine Reinforced Deuterium Engine Power Core Neutrino Core Reactor Mini Fusion Reactor Propulsion Armored Leg Treads Light Treads Leg Armored Leg Wheel Wheel Utility Large Storage Unit Device Improved Cooling System Storage Large Storage Unit Processor Advanced Targeting Computer Protection Centrium Medium Armor Plating Weapon Flak Gun Energy Gun Particle Gun Energy Cannon Heavy Ion Cannon Ballistic Gun Flak Gun Ballistic Cannon Mini Assault Cannon Launcher Proton Missile Launcher Impact Weapon Great Maul Build | -11 -10 -9 -8 -7 -6 -6 -6 -6 -6 -5 -4 ------- Run | Scr Mat Mat Mat Fac Fac Ext Cet Arc Hub Fac Fac Slots Evolved 12 | . . 2 2 2 2 . . . . 2 2 Power . | . . . . . . . . . . . . Propulsion 4 | . . 2 . . . . . . . 2 . Utility 6 | . . . 1 1 2 . . . . . 2 Weapon 2 | . . . 1 1 . . . . . . . Parts Attached 209 | 6 2 8 3 32 10 21 33 2 12 72 8 Power 15 | 1 . 2 . 2 2 . 1 . 2 4 1 Engine 8 | 1 . 2 . 2 1 . . . 1 . 1 Core 5 | . . . . . . . . . 1 4 . Reactor 2 | . . . . . 1 . 1 . . . . Propulsion 58 | 2 . 2 . 12 2 5 7 . 2 25 1 Treads 12 | 1 . 1 . . . . 2 . . 7 1 Leg 41 | . . 1 . 11 2 5 5 . 2 15 . Wheel 5 | 1 . . . 1 . . . . . 3 . Hover . | . . . . . . . . . . . . Flight . | . . . . . . . . . . . . Utility 66 | 1 . 1 2 7 4 9 14 1 4 22 1 Device 35 | . . 1 1 3 3 4 10 . 2 10 1 Storage 4 | 1 . . . 1 . . 1 . 1 . . Processor 5 | . . . 1 . . 1 . 1 . 2 . Hackware . | . . . . . . . . . . . . Protection 22 | . . . . 3 1 4 3 . 1 10 . Artifact . | . . . . . . . . . . . . Weapon 70 | 2 2 3 1 11 2 7 11 1 4 21 5 Energy Gun 29 | 1 2 3 1 1 1 1 7 1 1 7 3 Energy Cannon 4 | . . . . . 1 1 . . . 2 . Ballistic Gun 26 | 1 . . . 7 . 5 2 . 3 8 . Ballistic Cannon 5 | . . . . 2 . . . . . 3 . Launcher 5 | . . . . 1 . . 1 . . 1 2 Special Weapon . | . . . . . . . . . . . . Impact Weapon 1 | . . . . . . . 1 . . . . Slashing Weapon . | . . . . . . . . . . . . Piercing Weapon . | . . . . . . . . . . . . Special Melee Weapon . | . . . . . . . . . . . . Unidentified Prototypes 13 | . . . . 4 1 . 4 . . 4 . Corrupted Parts 7 | . . . . . . . 6 . . 1 . System Corruption 25 | . . . . . . . 20 . . 5 . Parts Lost 78 | . . 2 2 2 2 8 19 1 8 33 1 Power 6 | . . 1 . . . . 1 . 2 2 . Propulsion 23 | . . . 2 1 . 1 3 . 1 14 1 Utility 23 | . . . . . 2 4 7 . 2 8 . Weapon 26 | . . 1 . 1 . 3 8 1 3 9 . Highest Loss Streak 13 | . . 2 2 2 1 3 13 1 6 12 1 To Critical Strikes 4 | . . . . . . 1 2 . 1 . . Average Slot Usage (%) 91 | . 85 98 83 94 98 97 92 86 83 94 34 Engine 4 | . 14 11 9 7 6 6 . . 2 . 4 Core 1 | . . . . . . . . . . 4 . Treads 4 | . 14 22 14 1 . . 1 13 12 4 3 Leg 19 | . . 11 4 23 26 25 22 . . 24 . Wheel 1 | . 14 11 9 2 . . . . . . . Device 11 | . . 9 9 9 16 14 15 16 10 11 6 Storage 7 | . 14 11 9 7 6 6 7 6 11 6 4 Processor 6 | . . . 6 7 6 6 3 3 6 8 4 Protection 5 | . . . . 2 8 9 9 13 7 4 . Energy Gun 10 | . 27 21 22 9 1 3 15 20 18 7 7 Energy Cannon 1 | . . . . . 1 5 . . . 2 . Ballistic Gun 8 | . . . . 11 17 11 6 6 7 9 . Ballistic Cannon 3 | . . . . 8 6 4 . . . . . Naked Turns 57 | . . . . . . . . . . . 57 Heaviest Build 91 | 13 16 17 20 62 69 70 64 65 86 91 53 Greatest Support 160 | 10 10 40 10 85 91 85 160 160 160 98 30 Greatest Overweight (x) 17 | 1 1 1 1 1 1 1 1 . 1 7 17 Average Overweight (x) . | . 1 . 1 . . . . . . . . Largest Inventory Capacity 15 | 8 8 8 8 15 15 15 15 15 15 15 15 Average Capacity 13 | 7 8 8 8 12 15 15 15 15 15 15 13 Most Carried 15 | 6 8 8 8 15 15 15 15 15 15 15 15 Average Carried 12 | 3 7 6 7 11 14 14 13 14 14 13 11 Final Capacity 15 | 8 8 8 8 15 15 15 15 15 15 15 5 Final Carried 15 | 6 8 8 8 15 15 15 15 15 8 15 5 Class Distribution -------------------- 31% | Scavenger-Tank 22% | Scavenger-Gunner 22% | Gunner 14% | Mutant 6% | Scavenger-Mutant Dominant Class ---------------- Mutant | -10/Materials Mutant | -9/Materials Mutant | -8/Materials Gunner | -7/Factory Scavenger-Tank | -6/Factory Scavenger-Tank | -6/Extension Scavenger-Tank | -6/Cetus Scavenger-Mutant | -6/Archives Scavenger-Tank | -6/Hub_04(d) Scavenger-Gunner | -5/Factory Mutant | -4/Factory Resources | -11 -10 -9 -8 -7 -6 -6 -6 -6 -6 -5 -4 ----------- Run | Scr Mat Mat Mat Fac Fac Ext Cet Arc Hub Fac Fac Matter Collected 5348 | 212 17 121 30 995 496 1082 557 79 291 1378 90 Remotely . | . . . . . . . . . . . . Salvage Created 6586 | . 17 329 80 1123 583 1250 392 214 745 1763 90 Parts 307 | . 1 20 8 54 29 45 13 7 38 88 4 Haulers Intercepted 1 | . . . . 1 . . . . . . . Recyclers Shooed 3 | . . 1 . . . . . . . 2 . Parts Field Recycled . | . . . . . . . . . . . . Retrieved Matter . | . . . . . . . . . . . . Parts Self-Destructed . | . . . . . . . . . . . . Prevented . | . . . . . . . . . . . . Kills | -11 -10 -9 -8 -7 -6 -6 -6 -6 -6 -5 -4 ------- Run | Scr Mat Mat Mat Fac Fac Ext Cet Arc Hub Fac Fac Combat Hostiles Destroyed 122 | . . 13 4 23 9 22 6 3 10 31 1 Guns 93 | . . 13 4 14 7 12 5 3 10 24 1 Cannons 23 | . . . . 8 2 10 . . . 3 . AOE 3 | . . . . . . . 1 . . 2 . Classes Destroyed 14 | . 1 3 1 6 . 2 1 . . . . Worker 12 | . . . 1 1 5 . . . 1 4 . Builder 4 | . 1 . . 1 1 . . . . 1 . Hauler 1 | . . . . 1 . . . . . . . Recycler 3 | . . . . 1 1 1 . . . . . Watcher 6 | . . 1 . 3 1 . . . . 1 . Swarmer 25 | . . 7 4 4 4 1 . . . 5 . Grunt 48 | . . 6 . 12 2 12 2 . 4 10 . Brawler 4 | . . . . . . . 2 . . 2 . Duelist 2 | . . . . . . 1 . . . 1 . Sentry 20 | . . . . 1 2 5 . 3 2 6 1 Specialist 2 | . . . . 2 . . . . . . . Hunter 8 | . . . . . . 2 . . 4 2 . Programmer 10 | . . . . 3 1 1 . . . 5 . Heavy 1 | . . . . 1 . . . . . . . Cetus Guard 2 | . . . . . . . 2 . . . . Enhanced Grunt 1 | . . . . . . . . . 1 . . Savage 2 | . . . . . . . 2 . . . . Best Kill Streak 9 | . 1 7 4 5 9 5 3 1 3 5 1 Combat Bots Only 7 | . . 7 4 4 4 5 3 1 3 4 1 Max Kills in Single Turn 2 | . 1 2 2 2 1 1 2 1 1 2 1 Gunslinging 1 | . . 1 1 . . . . . . . . Exploded 1 | . . . . . . . 1 . . 1 . Melee . | . . . . . . . . . . . . Uniques/NPCs Destroyed . | . . . . . . . . . . . . Combat | -11 -10 -9 -8 -7 -6 -6 -6 -6 -6 -5 -4 -------- Run | Scr Mat Mat Mat Fac Fac Ext Cet Arc Hub Fac Fac Damage Taken 16405 | . . 587 134 1621 720 2021 1976 206 3122 5049 969 Core 2378 | . . 102 31 234 41 229 284 . 275 398 784 Absorbed by Shields 426 | . . . . . 61 162 203 . . . . Reduced by Siege Mode 116 | . . . . . . . . . 116 . . Redirected to Shielding 43 | . . . . . . 10 33 . . . . Core Remaining (%) 70 | 100 100 74 94 66 . . . . 2 60 . Volleys Fired 388 | . 6 43 9 55 28 65 43 9 25 100 5 Largest 4 | . 2 2 3 4 4 4 4 4 4 4 3 Hottest 297 | . 130 130 155 220 140 222 259 264 270 297 215 Shots Fired 1152 | . 10 73 26 219 79 222 95 23 77 315 13 Gun 881 | . 10 73 26 151 51 122 82 23 77 254 12 Cannon 254 | . . . . 68 28 100 3 . . 55 . Launcher 17 | . . . . . . . 10 . . 6 1 Special . | . . . . . . . . . . . . Kinetic 574 | . . . . 161 55 137 26 8 25 162 . Thermal 557 | . 10 73 26 58 24 85 59 15 52 147 8 Explosive 10 | . . . . . . . 10 . . . . Electromagnetic 11 | . . . . . . . . . . 6 5 Robot Hit Streak 28 | . 2 7 6 14 14 18 15 7 12 28 6 Robot Miss Streak 6 | . 3 6 3 6 5 4 5 2 4 4 4 Penetration Max 1 | . . . . . . 1 1 . 1 1 . Secondary Targets 15 | . . 2 2 . . . 4 . 3 4 . Max Gunslinging Chain 1 | . . 1 1 . . . 1 . 1 1 . Shots Hit Robots 760 | . 5 39 17 144 48 140 66 16 52 226 7 Core Hits 441 | . 1 15 5 88 43 101 60 3 27 92 6 Critical Kills 7 | . . . . . . 1 . 1 4 1 . Critical Parts Destroyed 6 | . . . . . . . 3 1 2 . . Critical Strikes 31 | . . 1 1 3 2 4 7 4 6 3 . Burn 12 | . . 1 1 3 1 2 4 . . . . Destroy 15 | . . . . . . 1 3 4 6 1 . Blast 4 | . . . . . 1 1 . . . 2 . Melee Attacks . | . . . . . . . . . . . . Impact . | . . . . . . . . . . . . Slashing . | . . . . . . . . . . . . Piercing . | . . . . . . . . . . . . Sneak Attacks . | . . . . . . . . . . . . Combat Hostiles . | . . . . . . . . . . . . Follow-up Attacks . | . . . . . . . . . . . . Damage Inflicted 18864 | . 92 603 217 2421 1199 3752 2191 399 1498 6291 201 Guns 13489 | . 92 603 217 1682 748 2127 1313 399 1470 4671 167 Cannons 3733 | . . . . 702 304 1586 27 . . 1114 . Explosions 1409 | . . . . . 96 . 851 . . 440 22 Melee . | . . . . . . . . . . . . Ramming 233 | . . . . 37 51 39 . . 28 66 12 Kinetic 8951 | . . . . 1800 697 2457 465 140 489 2903 . Thermal 8416 | . 92 603 217 584 451 1256 875 259 981 2973 125 Explosive 851 | . . . . . . . 851 . . . . Electromagnetic 413 | . . . . . . . . . . 349 64 Impact . | . . . . . . . . . . . . Slashing . | . . . . . . . . . . . . Piercing . | . . . . . . . . . . . . Highest Corruption 25 | . . . . . . 5 25 25 25 22 . Average Corruption 11 | . . . . . . 4 9 25 25 9 . Corruption Purged . | . . . . . . . . . . . . Corruption Blocked . | . . . . . . . . . . . . Effects 147 | . . . . . . 18 25 18 30 56 . Message Errors 33 | . . . . . . 5 5 3 3 17 . Matter Fused 32 | . . . . . . 3 8 5 4 12 . Heat Flow Errors 14 | . . . . . . 3 2 2 2 5 . Energy Discharges 17 | . . . . . . 1 4 1 4 7 . Parts Rejected 6 | . . . . . . 1 . . 2 3 . Data Loss (minor) 15 | . . . . . . 3 2 2 4 4 . Data Loss (major) 4 | . . . . . . . 1 1 1 1 . Misfires 4 | . . . . . . . . 2 1 1 . Alerts 3 | . . . . . . 1 . . 1 1 . Misdirections 4 | . . . . . . . . . 2 2 . Weapon Failures 15 | . . . . . . 1 3 2 6 3 . Overload Shots . | . . . . . . . . . . . . Overflow Damage 114 | . . . . . 47 9 . . . 58 . Projectiles 57 | . . . . . 4 9 . . . 44 . Explosions 43 | . . . . . 43 . . . . . . Melee 14 | . . . . . . . . . . 14 . Knockbacks 41 | . . . . 21 . 9 . . . 11 . Impact 3 | . . . . 1 . . . . . 2 . Kinetic 31 | . . . . 16 . 7 . . . 8 . Secondary 7 | . . . . 4 . 2 . . . 1 . Self-Inflicted Damage 132 | . . . . . 98 . . . . 23 11 Shots 3 | . . . . . 1 . . . . 1 1 Rammed 9 | . . . . . . . . . 5 . 4 Targets Rammed 33 | . . . . 4 7 5 . . 5 8 4 Kicked 24 | . . . . 4 7 5 . . . 8 . Crushed . | . . . . . . . . . . . . Highest Temperature 600 | . 264 294 . 337 . 86 396 223 600 432 107 Average Temperature 131 | . 155 133 . 68 . 24 162 79 300 131 47 Received Heat Transfer 3128 | . . 135 . 345 98 487 309 36 480 1108 130 Effects 35 | . 2 4 . 2 . . 1 . 21 5 . Shutdowns 6 | . . . . . . . 1 . 3 2 . Energy Bleed 9 | . . 1 . 2 . . . . 5 1 . Interference 11 | . 2 3 . . . . . . 4 2 . Matter Decay 4 | . . . . . . . . . 4 . . Short Circuit 1 | . . . . . . . . . 1 . . Damage (minor) 2 | . . . . . . . . . 2 . . Damage (major) 2 | . . . . . . . . . 2 . . Siege Activations 5 | . . . . . . . . 1 4 . . Total Turns 67 | . . . . . . . . 3 64 . . Longest Duration 29 | . . . . . . . . 3 29 . . Robots Corrupted . | . . . . . . . . . . . . Combat Hostiles . | . . . . . . . . . . . . Parts Fried . | . . . . . . . . . . . . Impact Corruptions 2 | . . . . . . . . . . 2 . Robots Melted 2 | . . . . 1 . . . . . 1 . Combat Hostiles 2 | . . . . 1 . . . . . 1 . Parts Melted 22 | . . 2 1 3 1 . . 1 4 9 1 Heat Transferred 14598 | . 222 1517 631 1616 822 2212 1739 407 1373 3874 185 Parts Sabotaged . | . . . . . . . . . . . . Parts Stolen . | . . . . . . . . . . . . Parts Stripped . | . . . . . . . . . . . . Power Chain Reactions 1 | . . . . . . . . . . 1 . Missiles Intercepted . | . . . . . . . . . . . . Alert | -11 -10 -9 -8 -7 -6 -6 -6 -6 -6 -5 -4 ------- Run | Scr Mat Mat Mat Fac Fac Ext Cet Arc Hub Fac Fac Peak Influence 984 | . 5 283 214 332 402 984 712 423 634 867 503 Initial 482 | . . 1 83 97 162 196 482 284 147 207 307 Average 359 | . . 154 156 199 246 555 589 405 438 448 375 Maximum Alert Level 3 | . . 1 1 1 2 3 3 2 2 3 2 Low Security (%) 25 | 100 100 66 59 47 38 2 . . 12 12 . Level 1 35 | . . 33 40 52 52 25 . 18 18 38 49 Level 2 25 | . . . . . 9 50 70 81 69 19 50 Level 3 12 | . . . . . . 21 29 . . 28 . Level 4 . | . . . . . . . . . . . . Level 5 . | . . . . . . . . . . . . High Security . | . . . . . . . . . . . . Max Security . | . . . . . . . . . . . . Squads Dispatched 39 | . . 3 . 7 1 6 1 . 8 9 4 Investigation 6 | . . 1 . 1 . 1 1 . 1 . 1 Extermination 5 | . . . . 3 . . . . . 2 . Reinforcement 17 | . . 2 . 3 1 2 . . 5 2 2 Assault 7 | . . . . . . 3 . . 1 2 1 Garrison 4 | . . . . . . . . . 1 3 . Intercept . | . . . . . . . . . . . . Searches Triggered . | . . . . . . . . . . . . Construction Impeded 3 | . . . . . . 1 . . 1 1 . Haulers Reinforced 2 | . . . . 1 . . . . 1 . . Active Scanning Responses . | . . . . . . . . . . . . Cargo Convoy Interrupts 1 | . . . . 1 . . . . . . . Stealth | -11 -10 -9 -8 -7 -6 -6 -6 -6 -6 -5 -4 --------- Run | Scr Mat Mat Mat Fac Fac Ext Cet Arc Hub Fac Fac Distress Signals 15 | . . 1 . 4 . 4 2 . 2 1 1 Communications Jammed 1 | . . . . . . . . . . 1 . Distress Signals 1 | . . . . . . . . . . 1 . Times Spotted 274 | . . 21 6 37 14 58 18 8 27 66 19 Peak Tracking Total 13 | . . 4 4 5 5 10 5 2 5 7 13 Tactical Retreats 17 | . . 1 1 2 1 3 . . . 8 1 Traps | -11 -10 -9 -8 -7 -6 -6 -6 -6 -6 -5 -4 ------- Run | Scr Mat Mat Mat Fac Fac Ext Cet Arc Hub Fac Fac Traps Triggered 10 | . . . . 1 . 2 . . 1 6 . Indirectly . | . . . . . . . . . . . . Trap Hack Attempts . | . . . . . . . . . . . . Triggered . | . . . . . . . . . . . . Disarmed . | . . . . . . . . . . . . Reprogrammed . | . . . . . . . . . . . . Reused . | . . . . . . . . . . . . Traps Extracted . | . . . . . . . . . . . . Installed . | . . . . . . . . . . . . Triggered 2 | . . . . 1 . . . . . 1 . Machines | -11 -10 -9 -8 -7 -6 -6 -6 -6 -6 -5 -4 ---------- Run | Scr Mat Mat Mat Fac Fac Ext Cet Arc Hub Fac Fac Machines Disabled 10 | . . 1 . 1 2 1 . 1 2 1 1 Max in Single Turn 1 | . . 1 . 1 1 . . 1 1 1 1 Machines Sabotaged . | . . . . . . . . . . . . Garrisons Compromised 1 | . . . . 1 . . . . . . . Overloaded Fab Kills . | . . . . . . . . . . . . Hacking | -11 -10 -9 -8 -7 -6 -6 -6 -6 -6 -5 -4 --------- Run | Scr Mat Mat Mat Fac Fac Ext Cet Arc Hub Fac Fac Machines Accessed 38 | . . 2 1 6 2 8 3 1 1 12 2 Terminals 26 | . . 2 1 3 1 7 3 . 1 6 2 Fabricators 3 | . . . . 1 . . . . . 2 . Repair Stations 4 | . . . . 1 1 . . . . 2 . Recycling Units 1 | . . . . . . 1 . . . . . Scanalyzers 1 | . . . . 1 . . . . . . . Garrison Access 2 | . . . . . . . . . . 2 . Total Hacks 121 | . . 9 3 14 6 17 9 25 2 28 8 Successful 69 | . . 6 2 10 3 10 1 25 1 7 4 Failed 52 | . . 3 1 4 3 7 8 . 1 21 4 Catastrophic 9 | . . . . . . 1 1 . . 6 1 Database Lockouts . | . . . . . . . . . . . . Manual 51 | . . 9 3 8 4 5 1 . 2 13 6 Terminals 72 | . . 9 3 8 4 13 9 . 2 16 8 Fabricators 5 | . . . . 2 . . . . . 3 . Repair Stations 8 | . . . . 2 2 . . . . 4 . Recycling Units 4 | . . . . . . 4 . . . . . Scanalyzers 2 | . . . . 2 . . . . . . . Garrison Access 5 | . . . . . . . . . . 5 . Terminal Hacks 36 | . . 1 . 2 . 4 1 25 . 1 2 Record 27 | . . . . . . . 1 25 . . 1 Part Schematic 1 | . . . . . . . . . . . 1 Open Door 4 | . . . . . . 4 . . . . . Level Access Points 2 | . . 1 . 1 . . . . . . . Terminal Index 1 | . . . . 1 . . . . . . . Alert Level 1 | . . . . . . . . . . 1 . Fabricator Hacks 1 | . . . . 1 . . . . . . . Network Status 1 | . . . . 1 . . . . . . . Repair Station Hacks 4 | . . . . 1 1 . . . . 2 . Scan Component 4 | . . . . 1 1 . . . . 2 . Recycling Unit Hacks 2 | . . . . . . 2 . . . . . Report Inventory 1 | . . . . . . 1 . . . . . Retrieve Components 1 | . . . . . . 1 . . . . . Scanalyzer 2 | . . . . 2 . . . . . . . Insert Component 1 | . . . . 1 . . . . . . . Analyze 1 | . . . . 1 . . . . . . . Garrison Access Hacks . | . . . . . . . . . . . . Unauthorized Hacks 24 | . . 5 2 4 2 4 . . 1 4 2 Terminals 24 | . . 5 2 4 2 4 . . 1 4 2 Track 1 | . . 1 . . . . . . . . . Botnet 16 | . . 2 1 3 1 3 . . 1 3 2 Operators 6 | . . 1 1 1 1 1 . . . 1 . Search 1 | . . 1 . . . . . . . . . Fabricators . | . . . . . . . . . . . . Repair Stations . | . . . . . . . . . . . . Recycling Units . | . . . . . . . . . . . . Scanalyzers . | . . . . . . . . . . . . Garrison Access . | . . . . . . . . . . . . Data Cores Recovered . | . . . . . . . . . . . . Used . | . . . . . . . . . . . . Hacking Detections 33 | . . 1 1 6 2 5 3 . 1 12 2 Full Trace Events 3 | . . . . . . 1 1 . . . 1 Feedback Events . | . . . . . . . . . . . . Feedback Blocked . | . . . . . . . . . . . . Robot Schematics Acquired . | . . . . . . . . . . . . Robots Built . | . . . . . . . . . . . . Authchips . | . . . . . . . . . . . . Time . | . . . . . . . . . . . . Total Robot Build Rating . | . . . . . . . . . . . . Part Schematics Acquired 2 | . . . . 1 . . . . . . 1 Parts Built . | . . . . . . . . . . . . Authchips . | . . . . . . . . . . . . Time . | . . . . . . . . . . . . Total Part Build Rating . | . . . . . . . . . . . . Parts Repaired . | . . . . . . . . . . . . Time . | . . . . . . . . . . . . Parts Recycled . | . . . . . . . . . . . . Recycled Matter . | . . . . . . . . . . . . Retrieved Matter . | . . . . . . . . . . . . Retrieved Components 6 | . . . . . . 6 . . . . . Parts Scanalyzed 1 | . . . . 1 . . . . . . . Part Schematics Acquired 1 | . . . . 1 . . . . . . . Parts Damaged . | . . . . . . . . . . . . Bothacking | -11 -10 -9 -8 -7 -6 -6 -6 -6 -6 -5 -4 ------------ Run | Scr Mat Mat Mat Fac Fac Ext Cet Arc Hub Fac Fac Used RIF Installer . | . . . . . . . . . . . . Robots Hacked . | . . . . . . . . . . . . Non-combat . | . . . . . . . . . . . . Combat . | . . . . . . . . . . . . Robot Hacks Applied . | . . . . . . . . . . . . Relay Couplers Released . | . . . . . . . . . . . . Fabnet Peak Effective % . | . . . . . . . . . . . . Robots Rewired 18 | . . . . . . 18 . . . . . Allies Hacked . | . . . . . . . . . . . . Hacks Repelled . | . . . . . . . . . . . . Allies | -11 -10 -9 -8 -7 -6 -6 -6 -6 -6 -5 -4 -------- Run | Scr Mat Mat Mat Fac Fac Ext Cet Arc Hub Fac Fac Total Allies 29 | . . . . . . 24 5 . . . . Largest Group 11 | . . . . . . 11 4 4 2 . . Highest-Rated Group 433 | . . . . . . 328 433 433 192 . . Highest-Rated Ally 159 | . . . . . . 159 145 145 96 . . Total Orders . | . . . . . . . . . . . . Ally Attacks 252 | . . . . . . 121 96 19 16 . . Total Damage 6558 | . . . . . . 2795 2578 594 591 . . Kills 48 | . . . . . . 24 17 1 6 . . Allies Corrupted 1 | . . . . . . 1 . . . . . Allies Melted . | . . . . . . . . . . . . Intel | -11 -10 -9 -8 -7 -6 -6 -6 -6 -6 -5 -4 ------- Run | Scr Mat Mat Mat Fac Fac Ext Cet Arc Hub Fac Fac Robot Analysis Total . | . . . . . . . . . . . . Derelict Logs Recovered . | . . . . . . . . . . . . Drone Launches . | . . . . . . . . . . . . Drone Recoveries . | . . . . . . . . . . . . Exploration | -11 -10 -9 -8 -7 -6 -6 -6 -6 -6 -5 -4 ------------- Run | Scr Mat Mat Mat Fac Fac Ext Cet Arc Hub Fac Fac Turns Passed 9315 | 54 162 580 219 2137 706 1241 639 376 402 2408 391 Spaces Moved 5342 | 44 147 302 190 1340 469 628 350 208 160 1270 234 Core 112 | 3 . . . . . . . . . . 109 Treads 880 | . . 203 . 143 . . 38 208 160 3 125 Legs 3665 | . . . . 1002 469 628 312 . . 1254 . Wheels 685 | 41 147 99 190 195 . . . . . 13 . Hover . | . . . . . . . . . . . . Flight . | . . . . . . . . . . . . Fastest Speed 50 | 50 95 95 95 90 120 120 120 160 160 120 50 Average Speed 132 | 88 95 138 95 129 120 123 126 160 161 142 151 Slowest Speed 900 | 95 95 160 95 240 190 190 190 160 240 330 900 Overloaded Moves . | . . . . . . . . . . . . Propulsion Burnouts . | . . . . . . . . . . . . Robots Hopped . | . . . . . . . . . . . . Cave-ins Triggered . | . . . . . . . . . . . . Exploration Rate (%) 36 | 5 31 26 18 31 14 67 78 97 26 35 6 Regions Visited 11 Branch Regions 4 Pre-discovered Areas . | . . . . . . . . . . . . Known Exits Taken 6 | . . 1 . 1 . 1 . 1 1 1 . Unknown Exits Taken 5 | 1 1 . 1 . 1 . 1 . . . . Scrap Searched . | . . . . . . . . . . . . Spaces Dug 32 | . . . . . 21 11 . . . . . Terrain Destroyed 169 | . . . . 7 25 23 52 2 12 48 . Melee . | . . . . . . . . . . . . Projectile 89 | . . . . 7 5 23 2 2 12 38 . AOE 80 | . . . . . 20 . 50 . . 10 . Terrain Rammed . | . . . . . . . . . . . . Walls Destroyed . | . . . . . . . . . . . . Machines Disabled . | . . . . . . . . . . . . Actions | -11 -10 -9 -8 -7 -6 -6 -6 -6 -6 -5 -4 --------- Run | Scr Mat Mat Mat Fac Fac Ext Cet Arc Hub Fac Fac Total 6787 | 55 160 389 208 1619 550 949 474 236 250 1639 258 Wait 401 | . . 32 3 137 24 28 8 9 37 120 3 Move 5331 | 43 146 301 189 1339 468 627 349 207 159 1269 234 Hop . | . . . . . . . . . . . . Pick Up 112 | 6 3 4 2 20 6 4 25 5 6 28 3 Fast Attach 82 | 6 1 1 1 13 1 5 8 . 3 41 2 Attach 67 | . . 4 1 3 2 6 18 1 8 18 6 Detach 3 | . . . . . . . . . . 2 1 Swap 61 | . 1 3 1 16 7 10 7 1 1 14 . Drop 111 | . 3 1 2 32 7 7 16 4 6 33 . Fire 388 | . 6 43 9 55 28 65 43 9 25 100 5 Melee . | . . . . . . . . . . . . Ram 5 | . . . . . . . . . . 1 4 Kick 24 | . . . . 4 7 5 . . . 8 . Crush 5 | . . . . . . . . . 5 . . Escape Stasis 14 | . . . . . . 9 . . . 5 . Rewire 183 | . . . . . . 183 . . . . . Trap . | . . . . . . . . . . . . Miscellaneous . | . . . . . . . . . . . . Route ------- -11/Scrapyard -10/Materials -9/Materials (discovered 3 exits: *Mat x3) -8/Materials -7/Factory (discovered 4 exits: *Fac x4) -6/Factory -6/Extension (discovered 2 exits: *Fac / *Cet) -6/Cetus (discovered 3 exits: *Fac x2 / *Arc) -6/Archives (discovered 3 exits: *Fac / *Hub x2) -6/Hub_04(d) -5/Factory (discovered 2 exits: *Fac x2) -4/Factory History --------- Turn | Location | Event 23 | -11/Scrapyard | Discovered new exit (range 16) 55 | -11/Scrapyard | Entered Materials 143 | -10/Materials | Discovered new exit (range 8) 217 | -10/Materials | Entered another Materials area 217 | -9/Materials | Evolved 2 slots: Propulsion x2 317 | -9/Materials | Build established: Mutant 391 | -9/Materials | Destroyed 7 combat bots 606 | -9/Materials | Identified exit to Materials 797 | -9/Materials | Entered another Materials area 797 | -8/Materials | Evolved 2 slots: Utility x1, Weapon x1 962 | -8/Materials | Discovered new exit (range 16) 1016 | -8/Materials | Entered Factory 1016 | -7/Factory | Evolved 2 slots: Utility x1, Weapon x1 1222 | -7/Factory | Build established: Gunner 1711 | -7/Factory | Cargo convoy interrupted 2642 | -7/Factory | Identified exit to Factory 3153 | -7/Factory | Entered another Factory area 3153 | -6/Factory | Evolved 2 slots: Utility x2 3423 | -6/Factory | Build established: Scavenger-Tank 3842 | -6/Factory | Discovered new exit (range 15) 3859 | -6/Factory | Entered Extension 3994 | -6/Extension | Rescued a captive Derelict 3995 | -6/Extension | Rescued a captive Derelict 4066 | -6/Extension | Rescued a captive Derelict 4066 | -6/Extension | Rescued a captive Derelict 4154 | -6/Extension | Rescued a captive Derelict 4209 | -6/Extension | First assault squad dispatched 4428 | -6/Extension | Spotted B-75 Beast 4464 | -6/Extension | Lost 3 parts (2u1w) 4576 | -6/Extension | Rescued A7 5059 | -6/Extension | Discovered new exit (range 10) 5060 | -6/Extension | Discovered new exit (range 6) 5080 | -6/Extension | Identified exit to Factory 5083 | -6/Extension | Identified exit to Cetus 5100 | -6/Extension | Entered Cetus 5100 | -6/Cetus | Accompanied by 4 allies (A7) 5105 | -6/Cetus | Acquired a Cetus Manufacturing Module code from A7 5117 | -6/Cetus | Spotted Cetus Guard 5117 | -6/Cetus | Spotted Cetus Guard 5123 | -6/Cetus | Spotted Cetus Guard 5126 | -6/Cetus | Spotted Cetus Guard 5136 | -6/Cetus | Destroyed Cetus Guard 5161 | -6/Cetus | Allies destroyed Cetus Guard 5162 | -6/Cetus | Core integrity fell below 50% 5163 | -6/Cetus | Destroyed Cetus Guard 5172 | -6/Cetus | Allies destroyed Cetus Guard 5191 | -6/Cetus | Lost 13 parts (1p3n5u4w) 5243 | -6/Cetus | Discovered exit to Factory (range 16) 5423 | -6/Cetus | Started Cetus Manufacturing Module 5448 | -6/Cetus | Manufactured an Enhanced Grunt 5466 | -6/Cetus | Discovered new exit (range 16) 5473 | -6/Cetus | Manufactured an Enhanced Grunt 5495 | -6/Cetus | Spotted Cetus Guard 5497 | -6/Cetus | Spotted Cetus Guard 5498 | -6/Cetus | Manufactured an Enhanced Grunt 5510 | -6/Cetus | System corruption reached 10% 5512 | -6/Cetus | Allies destroyed Cetus Guard 5512 | -6/Cetus | Spotted Cetus Guard 5518 | -6/Cetus | Allies destroyed Cetus Guard 5521 | -6/Cetus | Spotted Cetus Guard 5523 | -6/Cetus | Manufactured an Enhanced Grunt 5533 | -6/Cetus | Allies destroyed Cetus Guard 5537 | -6/Cetus | Allies destroyed Cetus Guard 5544 | -6/Cetus | Discovered exit to Factory (range 15) 5548 | -6/Cetus | Manufactured an Enhanced Grunt 5552 | -6/Cetus | Met Revision 17 5556 | -6/Cetus | Lost 6 parts (2u4w) 5739 | -6/Cetus | Entered Archives 5739 | -6/Archives | Accompanied by 4 allies (A7) 5818 | -6/Archives | Unable to access archive contents 5825 | -6/Archives | Discovered exit to Factory (range 15) 5840 | -6/Archives | Unable to access archive contents 5847 | -6/Archives | Discovered new exit (range 13) 5860 | -6/Archives | Unable to access archive contents 5866 | -6/Archives | Discovered new exit (range 14) 5914 | -6/Archives | Identified exit to Hub_04(d) 5953 | -6/Archives | Unable to access archive contents 6105 | -6/Archives | Build established: Scavenger-Mutant 6115 | -6/Archives | Entered Hub_04(d) 6115 | -6/Hub_04(d) | Accompanied by 2 allies 6436 | -6/Hub_04(d) | Discovered exit to Factory (range 14) 6465 | -6/Hub_04(d) | First assault squad dispatched 6485 | -6/Hub_04(d) | Core integrity fell below 20% 6495 | -6/Hub_04(d) | Garrison activated, responded to threat 6517 | -6/Hub_04(d) | Entered Factory 6517 | -5/Factory | Evolved 2 slots: Propulsion x2 6542 | -5/Factory | Build established: Scavenger-Tank 6548 | -5/Factory | Lost 6 parts (1p1n1u3w) 7563 | -5/Factory | Build established: Scavenger-Gunner 7612 | -5/Factory | Discovered new exit (range 5) 7616 | -5/Factory | Identified exit to Factory 7882 | -5/Factory | Garrison activated, responded to threat 8017 | -5/Factory | First assault squad dispatched 8241 | -5/Factory | Lost 3 parts (2n1w) 8259 | -5/Factory | System corruption reached 10% 8551 | -5/Factory | Lost 10 parts (5n3u2w) 8718 | -5/Factory | Discovered exit to Factory (range 15) 8925 | -5/Factory | Entered another Factory area 8925 | -4/Factory | Evolved 2 slots: Utility x2 8955 | -4/Factory | Lost 12 parts (1p5n3u3w) 9175 | -4/Factory | First assault squad dispatched 9255 | -4/Factory | Released all parts (10) 9298 | -4/Factory | Core integrity fell below 50% 9316 | -4/Factory | Self-destructed Last Messages --------------- Rating: 8 Schematic downloaded. 09271_ ALERT: Suspicious activity at Terminal F016. Dispatching Investigation squad. 09272_ Penetrated by Slug. 09276_ Slug penetrates Wall. 09278_ ALERT: Suspicious intruders detected, dispatching Cutter reinforcements to area. 09285_ Slammed into Y-64 Sentinel. 09287_ C-30 ARC bursts open, deploying its payload. 09287_ G-73 Enforcer unfolds itself. 09287_ G-67 Veteran unfolds itself. 09290_ Penetrated by Slug. 09290_ Knocked back. 09292_ Penetrated by Slug. 09302_ Slammed into T-07 Excavator. 09302_ Destabilizing: Core damaged (-34). 09304_ Slammed into T-07 Excavator. 09311_ Acquired Proton Missile Launcher. 09315_ Proton Missile Launcher severed. Map ----- +----------------------------------------------------+ | ????# #????###" ####?????????????????????????? | | ????# #??????## #????????????????????????????? | | ????# #???????# #????????????????????????????? | | ???## ##??????# #????????????????????????????? | | ???# #??????# #????????????????????????????? | | ###### #??????# #????????????????????????????? | | + T ]#?######+##???????????????????????????? | | # #?# #???????????????????????????? | | # #?# #???????????????????????????? | | ?### ###?# """" #???????????????????????????? | | ???# #???# """" #???????????????????????????? | | ????# #???# """"H#########???###?????????????? | | ###????# #???# """" ## ??? # ?????????? | | ???????# #???# """" ## ?? # #???????? | | ???????# #???# """" ## """""?? # +???????? | | ???????# #???# ## """"""? # #???????? | | ???????# #???#] """" ## """"""" # #???????? | | ???????# ##### """" # """"""" # #???????? | | ???????# # """" ## # #???????? | | ???????# # """" ## """"""" # #???????? | | ???????# + """" ## """"""" # ######### | | ???????+ # """" ## """"""" # # | | ???????# # ## " """" # # | | ???????# # ## # # """"""" | | ?????### ###+#############+##### # | | ?????# t p c@]!*! # """"""" | | ?????# cc[[! # | | ?????# [! + """"""" | | ?????# [ # | | ?????# # """"""" | | ???######+########################## # | | ???# #??????????????????# # """"""" | | ???# #??????????????????# + | | ???# """" """" #??????????????????# ######### | | ???# """" """" #??????????????????# #???????? | | ???# """" """" #################### #???????? | | ???# """" """" + #???????? | | ???# """" """" ######################+###???????? | | ???# """" """" #??????????????????? ????????? | | ???# """" """" #????????????????? ??????? | | ???# #??????????????? """"" """"" ????? | | ???# #????????????? """"" """"" ""??? | | ???# #????????????# """ """ ""??? | | ???##############????????????# T???? | | ?????????????????????????????????? [ "???? | | ?????????????????????????????????? ??? ????? | | ??????????????????????????????????######?????????? | | | | | | | +----------------------------------------------------+ Best States ------------- Heat Dissipation 102 Energy Generation 21 Energy Capacity 350 Matter Stores 384 Matter Capacity 550 Sight Range 16 Terrain Scan Density 10 Jamming Range 12 Armor Coverage 750 Resistance: KI 30 Core Shielding 20 Phase Shifting 5 Evasion (%) 60 Targeting Accuracy 16 Recoil Reduction 7 Item Schematics ----------------- Hvy. Rocket Launcher | -7/Factory | Scanalyzed Hyp. Railgun | -4/Factory | Hacked Robot Schematics ------------------ None Fabricated ------------ Nothing Alien Tech Used ----------------- None Achievements -------------- Project G-00 Revising The Future Challenges ------------ None Game ------ Seed SingularityMyomerFlamer Manual? 0 Play Time 01:36:38 Cumulative 72.4 hours Start 2022.04.16 @ 16:21:57 End 2022.04.17 @ 16:47:49 Sessions 5 Manual Loads 0 Difficulty Rogue Special Mode None Game No. 110 Rogue 110 Adventurer 0 Explorer 0 Win Type - Total 1 Types 1/0/0/0/0/0/0/0/0 Lore% 50 Gallery% 53 Achievement% 39 Wizard Run 0 Options --------- ASCII 0 Keyboard 0 Movement Numpad Keybinds 0 Fullscreen 1 Font 18/SmallcapsGlow Map View 76x50 Tactical HUD 1 Map Filters NONE Filters NONE Steam 1 RUN: 4d2d1f9a-8eba-4616-8316-e41713743b4a